Cogmind - Beta 13 @@@ ROGUE MODE // 2024.03.01 @ 14:36:14 Player: Kyzrati Result: Destroyed by Y-54 Guardian with Flak Gun Performance ------------- Evolutions (0) 0 Regions Visited (3) 600 Robots Destroyed (28) 140 Value Destroyed (782) 782 Prototype IDs (0) 0 Alien Tech Used (0) 0 Bonus (0) 0 TOTAL SCORE: 1522 Bonus ------- None Cogmind --------- Core Integrity 0/250 Matter 131/300 Energy 250/250 System Corruption 2% Temperature Cool (88) Movement Treading (160) Location -7/Recycling Parts ------- > --- POWER (1) -------- Ion Engine > --- PROPULSION (2) --- Spiked Treads Subdweller Monowheel > --- UTILITY (2) ------ (None) > --- WEAPON (2) ------- Heavy Battle Rifle > --- INVENTORY (5) ---- Subdweller Monowheel Subdweller Monowheel Heavy Battle Rifle Subdweller Shrapnel Launcher Makeshift Spear Peak State ------------ > --- POWER ------------ Subdweller Power Source > --- PROPULSION ------- Spiked Treads Subdweller Monowheel > --- UTILITY ---------- Scrap Shield > --- WEAPON ----------- Heavy Battle Rifle Heavy Battle Rifle > --- INVENTORY -------- Subdweller Monowheel Subdweller Monowheel Battle Cannon Subdweller Shrapnel Launcher Makeshift Spear [Rating: 19] Favorites ----------- Power Ion Engine Engine Ion Engine Propulsion Light Treads Treads Light Treads Leg Aluminum Leg Wheel Subdweller Monowheel Utility Seismic Detector Device Seismic Detector Storage Medium Storage Unit Protection Scrap Shield Weapon Subdweller Machine Gun Energy Gun Small Laser Energy Cannon Subdweller Beam Cannon Ballistic Gun Subdweller Machine Gun Ballistic Cannon Battle Cannon Launcher Subdweller Shrapnel Launcher Piercing Weapon Makeshift Spear Build | -11 -10 -10 -7 ------- Run | Yrd Mat Sub Rec Slots Evolved . | . . . . Power . | . . . . Propulsion . | . . . . Utility . | . . . . Weapon . | . . . . Parts Attached 38 | 7 2 29 . Power 6 | 1 . 5 . Engine 6 | 1 . 5 . Core . | . . . . Reactor . | . . . . Propulsion 10 | 2 . 8 . Treads 4 | 2 . 2 . Leg 3 | . . 3 . Wheel 3 | . . 3 . Hover . | . . . . Flight . | . . . . Utility 4 | 2 1 1 . Device 1 | 1 . . . Storage 2 | 1 1 . . Processor . | . . . . Hackware . | . . . . Protection 1 | . . 1 . Artifact . | . . . . Weapon 18 | 2 1 15 . Energy Gun 3 | 1 1 1 . Energy Cannon 2 | . . 2 . Ballistic Gun 9 | 1 . 8 . Ballistic Cannon 1 | . . 1 . Launcher 2 | . . 2 . Special Weapon . | . . . . Impact Weapon . | . . . . Slashing Weapon . | . . . . Piercing Weapon 1 | . . 1 . Special Melee Weapon . | . . . . Unidentified Prototypes . | . . . . Parts Lost 6 | . 1 3 2 Power 2 | . . 2 . Propulsion . | . . . . Utility 1 | . . . 1 Weapon 3 | . 1 1 1 Highest Loss Streak 2 | . 1 1 2 To Critical Strikes . | . . . . Average Slot Usage (%) 91 | . 100 88 78 Engine 12 | . 14 11 14 Treads 19 | . 28 16 14 Leg 2 | . . 2 . Wheel 6 | . . 8 14 Device 7 | . 14 5 . Storage 7 | . 14 5 . Protection 6 | . . 8 7 Energy Gun 13 | . 23 11 . Energy Cannon 1 | . . 2 . Ballistic Gun 12 | . 4 14 14 Naked Turns . | . . . . Heaviest Build 35 | 13 19 35 30 Greatest Support 40 | 40 40 40 20 Greatest Overweight (x) 3 | . . 3 1 Average Overweight (x) . | . . . 1 Largest Inventory Capacity 10 | 8 10 10 5 Average Capacity 7 | 6 9 7 5 Most Carried 10 | 3 10 10 5 Average Carried 7 | 1 8 7 5 Final Capacity 10 | 8 10 5 5 Final Carried 10 | 3 10 5 5 Class Distribution -------------------- 46% | Mutant 45% | Subdweller-Mutant 7% | Derelict-Mutant Dominant Class ---------------- Mutant | -10/Materials Subdweller-Mutant | -10/Subcaves Subdweller-Mutant | -7/Recycling Resources | -11 -10 -10 -7 ----------- Run | Yrd Mat Sub Rec Matter Collected 844 | 274 23 547 . Remotely . | . . . . Salvage Created 806 | 121 236 449 . Parts 52 | 7 14 31 . Haulers Intercepted . | . . . . Recyclers Shooed 2 | 1 1 . . Parts Field Recycled . | . . . . Retrieved Matter . | . . . . Parts Self-Destructed 6 | . . 6 . Prevented . | . . . . Kills | -11 -10 -10 -7 ------- Run | Yrd Mat Sub Rec Combat Hostiles Destroyed 24 | . 8 16 . Guns 17 | . 8 9 . Cannons 3 | . . 3 . AOE 4 | . . 4 . Classes Destroyed 7 | 2 2 3 . Tunneler 1 | 1 . . . Recycler 1 | 1 . . . Turret 2 | . . 2 . Swarmer 8 | . 4 4 . Grunt 4 | . 4 . . Artisan 1 | . . 1 . Subdweller 12 | . . 12 . Best Kill Streak 6 | 2 3 6 . Combat Bots Only 4 | . 3 4 . Max Kills in Single Turn 2 | 1 1 2 . Gunslinging . | . . . . Exploded 2 | . . 2 . Melee . | . . . . Uniques/NPCs Destroyed . | . . . . Combat | -11 -10 -10 -7 -------- Run | Yrd Mat Sub Rec Hostile Shots Fired 202 | . 31 126 45 Missed 71 | . 9 50 12 Damage Taken 2349 | . 430 1683 236 Core 250 | . 24 177 49 Absorbed by Shields . | . . . . Core Remaining (%) 100 | 100 . . . Volleys Fired 117 | 4 18 90 5 Largest 2 | 2 2 2 2 Hottest 110 | 60 90 110 72 Shots Fired 205 | 8 36 152 9 Gun 177 | 8 36 128 5 Cannon 21 | . . 17 4 Launcher 7 | . . 7 . Special . | . . . . Kinetic 133 | 4 8 112 9 Thermal 72 | 4 28 40 . Explosive . | . . . . Electromagnetic . | . . . . Robot Hit Streak 16 | 3 8 16 13 Robot Miss Streak 4 | 2 2 4 . Penetration Max . | . . . . Secondary Targets 3 | . 2 1 . Max Gunslinging Chain 1 | . 1 1 . Shots Hit Robots 135 | 5 25 96 9 Core Hits 50 | 3 14 31 2 Critical Kills . | . . . . Critical Parts Destroyed 2 | . . 2 . Critical Strikes 4 | . . 4 . Destroy 3 | . . 3 . Impale 1 | . . 1 . Melee Attacks 4 | . . 4 . Impact . | . . . . Slashing . | . . . . Piercing 4 | . . 4 . Sneak Attacks . | . . . . Combat Hostiles . | . . . . Follow-up Attacks . | . . . . Damage Inflicted 2849 | 48 266 2366 169 Guns 1797 | 48 266 1391 92 Cannons 427 | . . 350 77 Explosions 521 | . . 521 . Melee 101 | . . 101 . Ramming 3 | . . 3 . Kinetic 1949 | 16 38 1726 169 Thermal 796 | 32 228 536 . Explosive . | . . . . Electromagnetic . | . . . . Impact . | . . . . Slashing . | . . . . Piercing 101 | . . 101 . Highest Corruption 2 | . . 2 2 Average Corruption 2 | . . 2 2 Corruption Purged . | . . . . Corruption Blocked . | . . . . Effects 37 | . . 35 2 Message Errors 12 | . . 12 . Matter Fused 6 | . . 5 1 Heat Flow Errors 4 | . . 4 . Energy Discharges 6 | . . 6 . Parts Fused 1 | . . 1 . Data Loss (minor) 2 | . . 2 . Data Loss (major) 1 | . . 1 . Misfires 3 | . . 3 . Weapon Failures 2 | . . 1 1 Overload Shots . | . . . . Overflow Damage 41 | . . 41 . Projectiles . | . . . . Explosions 41 | . . 41 . Melee . | . . . . Knockbacks . | . . . . Impact . | . . . . Kinetic . | . . . . Secondary . | . . . . Self-Inflicted Damage 92 | . . 92 . Shots 3 | . . 3 . Rammed . | . . . . Targets Rammed . | . . . . Kicked . | . . . . Crushed . | . . . . Highest Temperature 276 | 40 276 256 70 Average Temperature 78 | 18 93 75 37 Received Heat Transfer 441 | . 138 237 66 Siege Activations . | . . . . Robots Corrupted . | . . . . Combat Hostiles . | . . . . Parts Fried . | . . . . Impact Corruptions . | . . . . Robots Melted . | . . . . Combat Hostiles . | . . . . Parts Melted 1 | . 1 . . Heat Transferred 1513 | 75 572 866 . Parts Sabotaged . | . . . . Parts Stolen . | . . . . Parts Stripped . | . . . . Power Chain Reactions . | . . . . Alert | -11 -10 -10 -7 ------- Run | Yrd Mat Sub Rec Peak Influence 207 | 10 207 . 167 Initial 167 | . 6 . 167 Average 50 | 6 53 . 161 Maximum Alert Level 1 | . 1 . . Low Security (%) 99 | 100 99 . 100 Level 1 . | . . . . Level 2 . | . . . . Level 3 . | . . . . Level 4 . | . . . . Level 5 . | . . . . High Security . | . . . . Max Security . | . . . . Squads Dispatched 1 | . 1 . . Investigation 1 | . 1 . . Extermination . | . . . . Reinforcement . | . . . . Assault . | . . . . Garrison . | . . . . Intercept . | . . . . Searches Triggered . | . . . . Construction Impeded . | . . . . Haulers Reinforced . | . . . . Active Scanning Responses . | . . . . Cargo Convoy Interrupts . | . . . . Stealth | -11 -10 -10 -7 --------- Run | Yrd Mat Sub Rec Distress Signals 1 | . 1 . . Communications Jammed . | . . . . Distress Signals . | . . . . Times Spotted 52 | . 14 37 1 Peak Tracking Total 5 | . 5 5 1 Tactical Retreats 4 | . . 4 . Traps | -11 -10 -10 -7 ------- Run | Yrd Mat Sub Rec Traps Triggered 4 | . 1 3 . Indirectly . | . . . . Trap Hack Attempts . | . . . . Triggered . | . . . . Disarmed . | . . . . Reprogrammed . | . . . . Reused . | . . . . Traps Extracted . | . . . . Installed 1 | . . 1 . Triggered . | . . . . Most Traps Carried 1 | . . 1 . Machines | -11 -10 -10 -7 ---------- Run | Yrd Mat Sub Rec Machines Disabled 4 | . . 4 . Max in Single Turn 3 | . . 3 . Machines Repaired . | . . . . Machines Dismantled . | . . . . Machines Sabotaged . | . . . . Overloaded Fab Kills . | . . . . Hacking | -11 -10 -10 -7 --------- Run | Yrd Mat Sub Rec Machines Accessed 4 | . 3 1 . Terminals 3 | . 3 . . Fabricators . | . . . . Repair Stations . | . . . . Recycling Units . | . . . . Scanalyzers . | . . . . Garrison Access . | . . . . Total Hacks 8 | . 5 3 . Successful 5 | . 2 3 . Failed 3 | . 3 . . Catastrophic . | . . . . Database Lockouts . | . . . . Manual 3 | . 3 . . Terminals 5 | . 5 . . Fabricators . | . . . . Repair Stations . | . . . . Recycling Units . | . . . . Scanalyzers . | . . . . Garrison Access . | . . . . Terminal Hacks 5 | . 2 3 . Record 3 | . . 3 . Zone Layout 2 | . 2 . . Fabricator Hacks . | . . . . Repair Station Hacks . | . . . . Recycling Unit Hacks . | . . . . Scanalyzer . | . . . . Garrison Access Hacks . | . . . . Unauthorized Hacks . | . . . . Terminals . | . . . . Fabricators . | . . . . Repair Stations . | . . . . Recycling Units . | . . . . Scanalyzers . | . . . . Garrison Access . | . . . . Data Cores Recovered . | . . . . Used . | . . . . Hacking Detections 2 | . 2 . . Full Trace Events . | . . . . Feedback Events . | . . . . Feedback Blocked . | . . . . Robot Schematics Acquired . | . . . . Robots Built . | . . . . Authchips . | . . . . Time . | . . . . Total Robot Build Rating . | . . . . Part Schematics Acquired . | . . . . Parts Built . | . . . . Authchips . | . . . . Time . | . . . . Total Part Build Rating . | . . . . Parts Repaired . | . . . . Time . | . . . . Parts Recycled . | . . . . Recycled Matter . | . . . . Retrieved Matter . | . . . . Retrieved Components . | . . . . Parts Scanalyzed . | . . . . Part Schematics Acquired . | . . . . Parts Damaged . | . . . . Bothacking | -11 -10 -10 -7 ------------ Run | Yrd Mat Sub Rec Used RIF Installer . | . . . . Robots Hacked . | . . . . Non-combat . | . . . . Combat . | . . . . Robot Hacks Applied . | . . . . Relay Couplers Released . | . . . . Fabnet Peak Effective % . | . . . . Robots Rewired . | . . . . Allies Hacked . | . . . . Hacks Repelled . | . . . . Allies | -11 -10 -10 -7 -------- Run | Yrd Mat Sub Rec Total Allies . | . . . . Largest Group . | . . . . Highest-Rated Group . | . . . . Highest-Rated Ally . | . . . . Total Orders . | . . . . Ally Attacks . | . . . . Total Damage . | . . . . Kills . | . . . . Allies Corrupted . | . . . . Allies Melted . | . . . . Intel | -11 -10 -10 -7 ------- Run | Yrd Mat Sub Rec Robot Analysis Total . | . . . . Derelict Logs Recovered . | . . . . Drone Launches . | . . . . Drone Recoveries . | . . . . Exploration | -11 -10 -10 -7 ------------- Run | Yrd Mat Sub Rec Turns Passed 4262 | 95 859 3291 17 Spaces Moved 2013 | 50 229 1732 2 Core 8 | 8 . . . Treads 524 | 42 229 253 . Legs 157 | . . 157 . Wheels 1324 | . . 1322 2 Hover . | . . . . Flight . | . . . . Fastest Speed 50 | 50 160 120 120 Average Speed 135 | 142 160 131 120 Slowest Speed 330 | 160 160 330 120 Overloaded Moves . | . . . . Propulsion Burnouts . | . . . . Robots Hopped . | . . . . Cave-ins Triggered . | . . . . Exploration Rate (%) 27 | 4 40 64 2 Regions Visited 3 Branch Regions 2 Pre-discovered Areas 1 | . . 1 . Known Exits Taken . | . . . . Unknown Exits Taken 3 | 1 1 1 . Scrap Searched 9 | . . 9 . Spaces Dug 11 | . . 11 . Terrain Destroyed 82 | . . 82 . Melee . | . . . . Projectile 1 | . . 1 . AOE 81 | . . 81 . Terrain Rammed 1 | . . 1 . Walls Destroyed . | . . . . Machines Disabled . | . . . . Actions | -11 -10 -10 -7 --------- Run | Yrd Mat Sub Rec Total 3345 | 63 687 2587 8 Wait 1090 | . 432 657 1 Move 2010 | 49 228 1731 2 Hop . | . . . . Pick Up 29 | 3 7 19 . Fast Attach 22 | 7 . 15 . Attach 4 | . 1 3 . Detach . | . . . . Swap 12 | . 1 11 . Drop 38 | . . 38 . Fire 117 | 4 18 90 5 Melee 4 | . . 4 . Ram 1 | . . 1 . Kick . | . . . . Crush . | . . . . Escape Stasis . | . . . . Rewire . | . . . . Trap 1 | . . 1 . Miscellaneous 17 | . . 17 . Route ------- -11/Scrapyard -10/Materials (discovered 4 exits: [*Mat x2] / [*Min] / *Sub) -10/Subcaves (discovered 2 exits: [*Mat] / [*Rec]) -7/Recycling History --------- Turn | Location | Event 13 | -11/Scrapyard | Discovered new exit (range 15) 96 | -11/Scrapyard | Entered Materials 230 | -10/Materials | Discovered new exit (range 13) 235 | -10/Materials | Discovered new exit (range 16) 320 | -10/Materials | Build established: Mutant 478 | -10/Materials | Discovered new exit (range 7) 935 | -10/Materials | Discovered new exit (range 5) 955 | -10/Materials | Entered Subcaves 2377 | -10/Subcaves | Build established: Subdweller-Mutant 2607 | -10/Subcaves | Visited Clippyterm 2610 | -10/Subcaves | Learned location of Deep Caves (-6) 2799 | -10/Subcaves | Core integrity fell below 50% 3141 | -10/Subcaves | Discovered new exit (range 8) 3856 | -10/Subcaves | Discovered new exit (range 12) 4109 | -10/Subcaves | Ambushed by Subdweller buried in earth 4203 | -10/Subcaves | Core integrity fell below 20% 4246 | -10/Subcaves | Entered Recycling 4263 | -7/Recycling | Destroyed by Y-54 Guardian with Flak Gun Last Messages --------------- 04110_ KG-4K2(R): "NAT20!" 04113_ KG-4K2(R) destroyed. 04123_ The unstable cave ceiling collapses. 04123_ 25 Matter crushed. 04126_ Acquired 3 matter. 04159_ Triggered Piercing Trap. 04159_ Spikes shoot up from the floor. 04159_ Critical hit (Impale). 04202_ Triggered Shrapnel Trap. 04202_ An expanding cloud of shrapnel blasts out in all directions. 04221_ System corrupted: Heat flow error (+147). A mysterious object appears at your location! LOCATION=UNKNOWN GOAL=ESCAPE 04250_ System corrupted: Battle Cannon jammed. 04250_ Y-54 Guardian springs to life. 04254_ Scrap Shield destroyed. 04258_ System corrupted: Matter fused (-5). 04263_ Battle Cannon destroyed. Map ----- +----------------------------------------------------+ | | | | | | | | | | | | | | | | | | | | | | | | | | | | | ??????????????????????????????????????? | | ??????????????????????????????????????? | | ??????????????????????????????????????? | | ??????????????????????????????????????? | | ??????????????????????????????????????? | | ??????????????????????????????????????? | | ??????????????????????????????????????? | | ????????????????????????#####?????????? | | ????????????????????????# #?????????? | | ????????????????????????# ! #?????????? | | ????????????????????????# #?????????? | | ????????????????????????#@ #?????????? | | ???????????????????????#Y #?????????? | | ???????????????????????##% +?????????? | | ????????????????????????#% #?????????? | | ???????????????????????? #?????????? | | ???????????????????????? #?????????? | | ????????????????????????"" #?????????? | | ???????????????????????""" #?????????? | | ???????????????????????""" #?????????? | | ???????????????????????? #?????????? | | ?????????????????????????? #?????????? | | ?????????????????????????? #?????????? | | ?????????????????????????? #?????????? | | ?????????????????????????? #?????????? | | ??????????????????????????? #?????????? | | ??????????????????????????? ??????????? | | ??????????????????????????????????????? | | ??????????????????????????????????????? | | ??????????????????????????????????????? | | ??????????????????????????????????????? | | ??????????????????????????????????????? | | ??????????????????????????????????????? | | ??????????????????????????????????????? | | ??????????????????????????????????????? | | ??????????????????????????????????????? | +----------------------------------------------------+ Best States ------------- Heat Dissipation 25 Energy Generation 15 Energy Capacity 250 Matter Stores 300 Matter Capacity 300 Sight Range 16 Terrain Scan Density 10 Armor Coverage 800 Evasion (%) 50 Recoil Reduction 2 Item Schematics ----------------- None Robot Schematics ------------------ None Fabricated ------------ Nothing Alien Tech Used ----------------- None Achievements -------------- None Challenges ------------ None Game ------ Seed DecoyDroneLaser Manual? 0 Play Time 00:35:26 Cumulative 475.7 hours Start 2024.02.28 @ 20:33:38 End 2024.03.01 @ 14:36:14 Sessions 7 Manual Loads 0 Difficulty Rogue Special Mode None Game No. 132 Rogue 132 Adventurer 0 Explorer 0 Win Type - Total 34 Types 26/0/2/2/0/1/1/2/0 Lore% 44 Gallery% 82 Achievement% 86 Wizard Run 0 Options --------- Layout 2 ASCII 1 Keyboard 1 Movement Numpad Keybinds 0 Fullscreen 2 Font 24/Smallcaps Map View 50x44 Zoom Use 0% Tactical HUD 1 Map Filters NONE Filters NONE Steam 1 RUN: 0d2ad298-5a88-4b0d-bf88-e26c59471b23